bitfinex-derivatives/quotes_ETHF0:USTF0_20220108
["timestamp","ask_amount","ask_price","bid_price","bid_amount"]
[1641631952194,0.78014742,3220.1,3220.0,1.49995061]
[1641631952393,1.03902361,3220.4,3220.0,3.50474061]
[1641631952595,0.14502361,3220.4,3220.3,1.49995061]
[1641631952993,0.14502361,3220.4,3220.1,1.49995061]
[1641631953192,0.14502361,3220.4,3220.1,2.43695311]
[1641631953394,0.14502361,3220.8,3220.3,1.49995061]
[1641631953595,0.14502361,3220.8,3220.1,0.9370025]
[1641631953596,0.14302361,3220.8,3220.7,1.49995061]
[1641631953894,0.14302361,3220.8,3220.7,2.25105061]
[1641631954095,0.14302361,3220.8,3220.7,3.31223912]
[1641631954294,1.5540154,3221.3,3220.7,5.31702912]
[1641631954495,1.5540154,3221.3,3221.0,1.49995061]
[1641631955295,1.93913919,3221.6,3221.0,1.49995061]
[1641631955494,2.00479,3221.7,3221.0,1.49995061]
[1641631955695,2.00479,3221.7,3221.1,0.024679]
[1641631956298,2.00479,3221.7,3221.2,2.00479]
[1641631956700,2.00479,3221.7,3221.2,3.1584267]
[1641631957998,2.269578,3221.7,3221.2,3.1584267]
[1641631959601,2.269578,3221.7,3221.2,1.1536367]
[1641631959602,16.220365,3221.7,3221.2,1.1536367]
[1641631959803,16.220365,3221.7,3220.7,2.00479]
[1641631959804,1.5,3221.6,3220.7,2.00479]
[1641631960006,1.55217802,3221.2,3220.7,2.00479]
[1641631960206,0.264788,3221.1,3220.8,0.024679]
[1641631960407,1.5894724,3221.5,3220.8,0.024679]
[1641631960607,1.55205034,3221.5,3220.8,0.024679]
[1641631960805,0.30222378,3221.4,3220.8,0.959479]
[1641631961007,0.03743578,3221.4,3220.8,0.959479]
[1641631961409,2.00479,3221.7,3220.8,0.959479]
[1641631961808,0.03742482,3221.6,3220.8,0.959479]
[1641631962007,0.264788,3221.5,3220.8,0.959479]
[1641631962607,0.264788,3221.5,3220.9,0.91450939]
[1641631966808,0.264788,3221.5,3220.9,1.54200939]
[1641631968314,0.264788,3221.5,3221.1,2.00479]
[1641631969814,1.764788,3221.5,3221.1,2.00479]
[1641631970014,0.264788,3221.5,3221.1,2.00479]
[1641631970215,1.81685279,3221.5,3221.1,2.00479]
[1641631970418,0.03743409,3221.4,3221.1,2.00479]
[1641631970615,0.264788,3221.3,3221.1,2.00479]
[1641631970817,1.117288,3221.3,3221.1,2.00479]
[1641631971216,0.03743409,3221.2,3221.1,2.00479]
[1641631971618,0.264788,3221.3,3221.1,2.00479]
[1641631971817,0.264788,3221.3,3221.1,2.61059]
[1641631976019,0.264788,3221.3,3221.1,2.00479]
[1641631979626,1.55206479,3221.5,3221.2,1.01888667]
[1641631980425,0.03743621,3221.4,3221.2,1.01888667]
[1641631981226,0.03743621,3221.5,3221.2,1.01888667]
[1641631981425,0.264788,3221.4,3221.2,1.01888667]
[1641631981626,0.30222547,3221.4,3221.2,1.01888667]
[1641631981826,0.264788,3221.4,3221.2,1.01888667]
[1641631982026,1.42345414,3221.6,3221.2,1.04356567]
[1641631982227,1.42345414,3221.6,3221.2,1.65156567]
[1641631982428,1.68824214,3221.6,3221.2,1.65156567]
[1641631982631,0.03743453,3221.5,3221.2,1.65156567]
[1641631983030,0.03743453,3221.5,3221.2,1.62688667]
[1641631984033,0.03743453,3221.5,3220.7,2.00479]
[1641631984034,3.98354968,3221.3,3220.5,1.29431716]
[1641631984230,1.5524238,3220.7,3219.8,27.6331885]
[1641631984429,2.00479,3220.8,3220.0,2.00479]
[1641631984629,3.55716801,3220.8,3220.1,0.024679]
[1641631984832,0.264788,3220.7,3220.1,0.024679]
[1641631985835,4.19795501,3220.8,3220.1,0.024679]
[1641631986036,4.19795501,3220.8,3220.2,0.80666807]
[1641631986431,2.645577,3220.8,3220.2,0.80666807]
[1641631989337,2.00479,3220.8,3220.2,0.80666807]
[1641631989537,0.78266714,3221.1,3220.2,0.80666807]
[1641631990438,0.78266714,3221.1,3220.5,2.00479]
[1641631990638,0.640787,3221.0,3220.5,2.00479]
[1641631991737,2.78745714,3221.3,3220.5,2.00479]
[1641631992137,0.264788,3221.2,3220.5,2.00479]
[1641631992440,1.0849064,3221.2,3220.5,2.00479]
[1641631992639,1.04745514,3221.2,3220.5,2.00479]
[1641631993639,0.640787,3221.1,3220.5,2.00479]
[1641631993942,1.5,3220.8,3220.0,2.00479]
[1641631994340,0.264788,3220.7,3220.0,2.00479]
[1641631994541,31.85137812,3220.5,3220.0,2.00479]
[1641631994941,0.264788,3220.4,3220.0,2.00479]
[1641631995947,0.640787,3220.3,3220.0,2.00479]
[1641632000246,0.905575,3220.3,3220.0,2.00479]
[1641632000649,2.00479,3220.5,3220.0,2.00479]
[1641632000847,2.00479,3220.5,3220.0,2.64169]
[1641632002048,0.78266714,3220.6,3220.0,2.64169]
[1641632003751,0.78266714,3220.6,3220.0,4.14164061]
[1641632003951,0.78266714,3220.6,3220.2,1.49995061]
[1641632004550,0.78266714,3220.6,3220.5,2.00479]
[1641632004752,0.78266714,3220.6,3220.5,2.029469]
[1641632005152,0.78266714,3221.0,3220.5,2.029469]
[1641632005753,0.78266714,3221.0,3220.6,0.86961252]
[1641632008554,0.78266714,3221.1,3220.6,0.86961252]
[1641632009657,0.78266714,3221.0,3220.6,0.86961252]
[1641632011759,0.78266714,3220.9,3220.6,0.86961252]
[1641632016769,0.264788,3220.8,3220.6,0.86961252]
[1641632017167,1.04745514,3220.8,3220.6,0.86961252]
[1641632017370,1.04745514,3220.8,3220.5,2.7919785]
[1641632017568,2.54745514,3220.8,3220.5,2.7919785]
[1641632017969,2.54745514,3220.8,3220.5,0.7871885]
[1641632018168,1.5,3220.6,3220.5,0.7871885]
[1641632018369,1.5,3220.6,3220.2,0.7871885]
[1641632018569,1.764788,3220.6,3220.2,0.7871885]
[1641632018770,2.00479,3220.4,3220.2,0.7871885]
[1641632018969,0.905575,3220.3,3220.2,0.7871885]
[1641632019168,37.12060213,3220.3,3220.2,0.7871885]
[1641632020172,37.12060213,3220.3,3220.0,2.00479]
[1641632020371,38.65893686,3220.3,3220.0,2.00479]
[1641632021772,38.16348511,3220.3,3220.0,2.00479]
[1641632021975,37.90720073,3220.3,3220.0,2.00479]
[1641632022675,1.6921736,3220.3,3220.1,1.24648865]
[1641632022876,1.6921736,3220.3,3220.1,2.10568865]
[1641632023775,0.905575,3220.3,3220.1,2.10568865]
[1641632025177,1.6921736,3220.3,3220.1,2.10568865]
[1641632025576,0.7865986,3220.3,3220.1,2.10568865]
[1641632027179,0.640787,3220.3,3220.1,2.10568865]
[1641632028379,1.4273856,3220.3,3220.1,2.10568865]
[1641632030287,0.640787,3220.3,3220.1,2.89287715]
[1641632030888,2.7913886,3220.4,3220.1,2.89287715]
[1641632031684,0.7865986,3220.4,3220.1,2.89287715]
[1641632032086,0.7865986,3220.4,3220.2,0.024679]
[1641632035490,1.53832531,3220.7,3220.2,0.024679]
[1641632035491,0.7865986,3220.5,3220.2,0.8118675]
[1641632036988,0.7865986,3220.5,3220.2,0.7871885]
[1641632037593,1.4273856,3220.6,3220.3,1.06935031]
[1641632037795,0.7865986,3220.6,3220.3,1.06935031]
[1641632038392,0.7865986,3220.6,3220.3,0.7871885]
[1641632038592,1.68366998,3220.8,3220.2,0.8118675]
[1641632038593,0.7865986,3220.5,3220.2,0.8118675]
[1641632042693,0.7865986,3220.5,3220.3,1.06938914]
[1641632044803,1.0513866,3220.5,3220.3,1.06938914]
[1641632045403,1.0513866,3220.5,3220.3,0.7871885]
[1641632045604,0.7865986,3220.4,3220.1,2.89287715]
[1641632046806,0.7865986,3220.5,3220.2,1.06941133]
[1641632049910,0.7865986,3220.4,3220.2,1.06941133]
[1641632051114,0.264788,3220.3,3220.2,1.06941133]
[1641632051912,0.264788,3220.3,3220.2,0.7871885]
[1641632052113,0.264788,3220.3,3220.0,2.7919785]
[1641632053716,0.49542078,3220.2,3220.0,2.00479]
[1641632053915,0.640787,3220.1,3220.0,2.00479]
[1641632054114,0.905575,3220.1,3220.0,2.00479]
[1641632055014,1.40099578,3220.1,3220.0,2.00479]
[1641632056519,1.13620778,3220.1,3220.0,2.00479]
[1641632056918,0.640787,3220.1,3220.0,2.00479]
[1641632057119,0.78439116,3220.1,3220.0,2.00479]
[1641632058422,0.78439116,3220.2,3220.0,2.00479]
[1641632058622,0.78439116,3220.2,3220.0,2.61599]
[1641632059824,2.910365,3220.4,3220.0,2.61599]
[1641632059825,0.78439116,3220.3,3220.0,3.4031785]
[1641632060524,0.264788,3220.2,3220.0,3.4031785]
[1641632061925,1.04917916,3220.2,3220.0,2.61599]
[1641632063026,0.78439116,3220.1,3220.0,2.61599]
[1641632063224,0.78439116,3220.1,3220.0,0.6112]
[1641632063425,2.28439116,3220.1,3220.0,0.6112]
[1641632063625,2.28439116,3220.1,3219.8,0.7871885]
[1641632063824,0.264788,3220.0,3219.8,0.7871885]
[1641632064026,0.264788,3220.0,3219.7,0.95372399]
[1641632064027,0.264788,3220.0,3219.7,1.74091249]
[1641632065026,1.04917916,3220.0,3219.7,0.95372399]
[1641632068832,0.78439116,3219.9,3219.7,0.95372399]
[1641632070838,0.78439116,3220.0,3219.7,1.74091249]
[1641632071038,0.78439116,3220.0,3219.7,2.61831249]
[1641632071840,1.04917916,3220.1,3219.8,1.0694058]
[1641632072639,1.04917916,3220.1,3219.7,2.61831249]
[1641632073641,0.78439116,3220.0,3219.7,2.61831249]
[1641632073841,0.264788,3219.9,3219.7,2.61831249]
[1641632075546,1.04917916,3219.9,3219.7,1.83112399]
[1641632076948,0.78439116,3219.9,3219.7,1.83112399]
[1641632077347,0.78439116,3219.9,3219.7,2.61831249]
[1641632079050,0.78439116,3219.9,3219.7,1.6645885]
[1641632079848,0.78439116,3219.9,3219.7,0.7871885]
[1641632080450,0.78439116,3219.9,3219.6,0.7871885]
[1641632081353,1.04917916,3219.9,3219.6,0.7871885]
[1641632082552,0.78439116,3219.8,3219.6,0.7871885]
[1641632082953,0.640787,3219.7,3219.6,0.7871885]
[1641632083554,0.640787,3219.7,3219.5,1.06907062]
[1641632083955,0.78439116,3219.8,3219.5,1.06907062]
[1641632085662,0.78439116,3220.0,3219.7,0.7871885]
[1641632085861,0.78439116,3220.0,3219.7,2.83919675]
[1641632087561,0.78439116,3220.0,3219.8,2.00479]
[1641632088163,2.46806114,3220.2,3219.9,0.7871885]
[1641632088364,1.42517816,3220.2,3219.9,0.7871885]
[1641632089367,0.78439116,3220.1,3219.9,1.06900211]
[1641632090066,0.78439116,3220.1,3219.9,0.7871885]
[1641632090067,1.04917916,3220.1,3219.9,0.7871885]
[1641632090268,0.78439116,3220.0,3219.8,2.00479]
[1641632090767,0.264788,3219.9,3219.8,2.00479]
[1641632091166,0.264788,3219.9,3219.7,2.19089675]
[1641632091567,0.264788,3219.9,3219.7,1.40370825]
[1641632091768,0.49550168,3220.0,3219.7,1.40370825]
[1641632092567,0.78346086,3219.9,3219.7,1.40370825]
[1641632093669,0.78346086,3220.0,3219.7,2.19089675]
[1641632094771,0.78346086,3219.9,3219.7,2.19089675]
[1641632095370,0.264788,3219.8,3219.7,2.19089675]
[1641632096572,0.264788,3219.8,3219.7,2.47274779]
[1641632099075,0.78346086,3219.9,3219.7,2.47274779]
[1641632099774,0.78346086,3219.9,3219.7,2.19089675]
[1641632099974,0.78346086,3219.8,3219.7,1.40370825]
[1641632100376,1.04824886,3219.8,3219.7,1.40370825]
[1641632100775,1.04824886,3219.8,3219.6,0.7871885]
[1641632101577,3.05303886,3219.8,3219.6,0.7871885]
[1641632101779,14.81,3219.7,3219.1,1.31555271]
[1641632101979,0.93183147,3219.5,3219.0,1.31555271]
[1641632102578,0.905575,3219.4,3219.0,1.31555271]
[1641632102781,1.651175,3219.4,3219.0,1.31555271]
[1641632102980,1.5,3219.3,3219.0,1.31555271]
[1641632103178,0.264788,3219.2,3219.0,1.31555271]
[1641632103580,3.50479,3219.1,3219.0,1.31555271]
[1641632103878,3.50479,3219.1,3218.6,1.31929876]
[1641632103879,0.264788,3219.0,3218.6,1.31929876]
[1641632104079,1.11840483,3218.9,3218.6,0.38712142]
[1641632104278,1.55356458,3218.7,3218.6,0.38712142]
[1641632104480,41.64437652,3218.7,3218.6,0.38712142]
[1641632105682,43.64916652,3218.7,3218.6,0.38712142]
[1641632105882,43.64916652,3218.7,3217.9,2.62899647]
[1641632106081,44.1447695,3218.7,3217.9,2.62899647]
[1641632106282,45.18765248,3218.7,3217.8,2.00479]
[1641632106683,43.6340879,3218.7,3217.8,2.00479]
[1641632106885,45.1340879,3218.7,3217.8,2.00479]
[1641632107287,44.63848492,3218.7,3217.8,2.00479]
[1641632107485,45.14900241,3218.7,3217.8,2.00479]
[1641632107886,43.64900241,3218.7,3217.8,2.00479]
[1641632108285,42.85820241,3218.7,3217.8,2.00479]
[1641632109687,44.35820241,3218.7,3217.8,2.00479]
[1641632109887,42.85820241,3218.7,3217.8,2.00479]
[1641632110491,44.35820241,3218.7,3217.8,2.00479]
[1641632111189,1.55361768,3218.3,3217.8,2.00479]
[1641632111390,0.264788,3218.2,3217.8,2.00479]
[1641632111590,2.269578,3218.2,3217.8,2.00479]
[1641632113188,2.269578,3218.2,3217.4,28.02879]
[1641632113189,15.74223052,3218.1,3217.4,28.02879]
[1641632113390,0.905575,3218.0,3217.0,24.902]
[1641632113690,4.43719774,3217.5,3216.9,1.58001507]
[1641632113890,0.264788,3217.4,3216.9,1.58001507]
[1641632114290,1.55422617,3217.0,3216.9,2.8959584]
[1641632114491,1.81901417,3217.0,3216.9,1.31594333]
[1641632114690,3.31901417,3217.0,3216.9,1.31594333]
[1641632114893,1.764788,3217.0,3216.9,1.31594333]
[1641632115092,0.93259026,3216.9,3216.6,1.58001507]
[1641632115291,1.5,3216.7,3216.6,1.58001507]
[1641632115496,17.88978377,3216.7,3216.2,2.62899647]
[1641632115693,16.81479,3216.3,3216.2,2.62899647]
[1641632115892,17.079578,3216.3,3215.4,2.00479]
[1641632116093,0.93280316,3216.2,3215.6,1.97441334]
[1641632116293,0.93280316,3216.2,3215.8,1.57953067]
[1641632116493,13.574788,3216.1,3215.8,1.57953067]
[1641632116892,1.55489317,3215.9,3215.8,1.57953067]
[1641632117093,0.264788,3215.9,3215.8,1.57953067]
[1641632117593,3.9603473,3215.9,3215.8,1.57953067]
[1641632117794,3.9603473,3215.9,3215.4,2.00479]
[1641632118594,2.4603473,3215.9,3215.4,2.029469]
[1641632118793,0.905575,3215.9,3215.4,2.029469]
[1641632119195,0.905575,3215.9,3215.4,2.00479]
[1641632119399,3.96033037,3215.9,3215.4,2.00479]
[1641632119597,2.46033037,3215.9,3215.4,2.00479]
[1641632121597,0.905575,3215.9,3215.4,2.00479]
[1641632125100,0.905575,3215.9,3215.4,2.90819]
[1641632125499,2.48739735,3216.2,3215.5,0.024679]
[1641632125700,0.264788,3216.1,3215.5,0.024679]
[1641632125900,2.00479,3216.3,3215.5,0.024679]
[1641632126099,0.640787,3216.2,3215.5,0.024679]
[1641632126299,0.264788,3216.1,3215.5,0.024679]
[1641632126499,1.115888,3216.1,3215.5,0.024679]
[1641632126699,2.04870135,3216.1,3215.4,2.00479]
[1641632127699,2.04870135,3216.1,3215.5,0.024679]
[1641632128304,2.04870135,3216.1,3215.4,2.00479]
[1641632128703,14.81,3216.0,3215.4,2.00479]
[1641632128904,0.264788,3215.9,3215.4,2.00479]
[1641632129805,1.55480372,3215.8,3215.4,2.00479]
[1641632130004,0.264788,3215.7,3215.4,2.00479]
[1641632130606,0.93299383,3215.5,3215.4,2.00479]
[1641632130807,1.83856883,3215.5,3215.4,2.00479]
[1641632133810,1.83856883,3215.5,3214.6,1.14737335]
[1641632133811,4.89367237,3215.5,3214.6,1.14737335]
[1641632134012,4.89367237,3215.5,3213.4,1.55510354]
[1641632134013,13.31,3215.3,3213.6,25.3498]
[1641632134209,13.9772,3215.3,3213.6,25.3498]
[1641632134416,0.9331113,3215.1,3213.6,25.3498]
[1641632134617,1.5,3215.0,3213.6,25.3498]
[1641632134818,14.2431113,3215.1,3213.6,25.3498]
[1641632135619,1.5,3215.0,3213.6,25.3498]
[1641632135820,13.31,3214.9,3214.2,2.00479]
[1641632136023,13.574788,3214.9,3214.2,2.00479]
[1641632136220,0.640787,3214.8,3214.2,2.00479]
[1641632136420,0.640787,3214.8,3214.3,0.024679]
[1641632136619,2.00479,3215.0,3214.3,0.024679]
[1641632136620,2.00479,3215.0,3214.3,2.22682961]
[1641632136820,0.93296467,3215.6,3214.4,0.77851877]
[1641632137322,25.3789,3216.1,3214.8,1.49995061]
[1641632137720,0.264788,3215.4,3214.9,1.10379159]
[1641632137919,0.264788,3215.4,3215.1,2.00479]
[1641632138120,0.264788,3215.4,3215.1,2.60759]
[1641632139123,27.38369,3216.1,3215.1,2.60759]
[1641632139323,0.264788,3215.6,3215.1,2.60759]
[1641632139723,2.00479,3216.1,3215.1,2.60759]
[1641632139924,2.00479,3216.1,3215.4,1.49995061]
[1641632140123,2.00479,3216.1,3215.1,4.10754061]
[1641632140922,2.00479,3216.1,3215.2,1.23890651]
[1641632141826,2.00479,3216.1,3215.7,2.00479]
[1641632142025,0.264788,3216.0,3215.7,2.00479]
[1641632142827,0.264788,3216.0,3215.7,2.93477387]
[1641632144928,2.00479,3216.1,3215.7,2.93477387]
[1641632148629,0.264788,3216.0,3215.7,2.93477387]
[1641632151532,2.00479,3216.1,3215.7,2.93477387]
[1641632151733,2.00479,3216.1,3215.7,3.73707387]
[1641632152736,0.264788,3216.0,3215.7,3.73707387]
[1641632152937,15.93956964,3216.0,3215.1,2.00479]
[1641632153343,1.55475296,3215.9,3215.1,2.00479]
[1641632154040,0.264788,3215.8,3215.1,2.00479]
[1641632154439,0.264788,3215.8,3215.2,0.024679]
[1641632154638,1.55475296,3215.9,3215.2,0.024679]
[1641632155037,0.264788,3215.8,3215.2,0.024679]
[1641632155238,1.55475296,3215.9,3215.2,1.52462961]
[1641632157140,1.55475296,3215.9,3215.2,0.024679]
[1641632157941,0.264788,3215.8,3215.2,0.024679]
[1641632160045,1.55475296,3215.9,3215.6,2.00479]
[1641632160245,1.55475296,3215.9,3215.7,1.50705646]
[1641632161446,1.81954096,3215.9,3215.7,1.50705646]
[1641632163349,1.55475296,3215.9,3215.7,1.50705646]
[1641632168255,26.01150715,3216.7,3215.7,1.50705646]
[1641632168455,0.77470715,3216.7,3215.7,1.50705646]
[1641632169260,0.77470715,3216.7,3215.8,1.49995061]
[1641632169457,0.77470715,3216.7,3215.7,1.50705646]
[1641632169659,2.77949715,3216.9,3215.8,1.49995061]
[1641632170559,2.77949715,3216.9,3215.7,1.50705646]
[1641632170959,2.77949715,3216.9,3215.8,1.49995061]
[1641632171460,2.77949715,3216.9,3215.7,1.50705646]
[1641632171864,0.77470715,3216.6,3215.7,1.50705646]
[1641632173267,0.77470715,3216.5,3215.7,1.50705646]
[1641632173467,0.905575,3216.4,3215.7,1.50705646]
[1641632174170,0.77470715,3216.2,3215.7,2.29444386]
[1641632175070,0.77470715,3216.2,3215.7,2.31912286]
[1641632175270,0.264788,3216.1,3215.7,2.29444386]
[1641632175470,0.264788,3216.1,3215.7,0.7873874]
[1641632175678,1.13191671,3215.9,3215.7,0.7873874]
[1641632175878,0.264788,3215.8,3215.7,0.7873874]
[1641632176278,0.34460767,3215.6,3215.2,1.30924865]
[1641632176476,0.640787,3215.7,3215.2,1.30924865]
[1641632176678,0.640787,3215.7,3215.2,0.16769693]
[1641632177078,0.640787,3215.7,3215.2,0.19237593]
[1641632177277,0.640787,3215.7,3215.2,0.16769693]
[1641632178280,0.264788,3215.6,3215.2,0.16769693]
[1641632181281,0.640787,3215.7,3215.2,0.16769693]
[1641632181479,0.640787,3215.7,3215.2,0.82819693]
[1641632182881,0.640787,3215.7,3215.3,0.16769693]
[1641632183079,0.640787,3215.7,3215.4,0.87109514]
[1641632184880,0.264788,3215.6,3215.4,0.87109514]
[1641632185081,0.868888,3215.6,3215.1,2.00479]
[1641632186483,1.04288298,3215.9,3215.5,1.49995061]
[1641632186783,0.66155778,3216.2,3215.8,1.49995061]
[1641632186984,0.66155778,3216.2,3215.9,1.11473411]
[1641632187184,1.54550602,3216.1,3215.9,2.61468472]
[1641632187384,1.54550602,3216.1,3215.9,1.11473411]
[1641632187582,1.54550602,3216.1,3215.9,2.61468472]
[1641632188182,1.54550602,3216.1,3216.0,2.00479]
[1641632188485,1.934208,3216.3,3216.0,2.029469]
[1641632188682,1.934208,3216.3,3216.2,1.49995061]
[1641632188981,1.934208,3216.3,3216.2,0.8132]
[1641632189383,2.57894401,3216.5,3216.2,0.8132]
[1641632189585,2.00479,3216.8,3216.2,0.8132]
[1641632189783,2.910365,3216.8,3216.2,0.8132]
[1641632193388,2.645577,3216.8,3216.2,0.8132]
[1641632193588,2.00479,3216.8,3216.2,0.8132]
[1641632193991,0.905575,3216.7,3216.0,2.029469]
[1641632194290,0.905575,3216.7,3216.0,2.00479]
[1641632194491,13.31,3216.6,3216.0,2.00479]
[1641632194792,0.264788,3216.5,3216.0,2.00479]
[1641632194992,1.55456927,3216.3,3216.0,2.00479]
[1641632195590,1.5,3216.5,3216.0,2.00479]
[1641632195790,0.264788,3216.2,3216.0,2.00479]
[1641632196191,1.24000613,3216.1,3216.0,2.00479]
[1641632196793,1.14104849,3215.9,3215.4,2.00479]
[1641632197593,0.905575,3216.0,3215.4,2.00479]
[1641632197594,0.905575,3216.0,3215.5,0.024679]
[1641632198293,0.905575,3216.0,3215.4,2.00479]
[1641632198894,0.77868119,3215.6,3215.4,2.00479]
[1641632201500,0.77868119,3215.6,3215.2,0.79207218]
[1641632202403,0.77868119,3215.6,3215.4,2.00479]
[1641632202602,0.264788,3215.5,3215.4,2.00479]
[1641632203002,0.264788,3215.5,3215.2,0.98814848]
[1641632203405,13.574788,3215.5,3215.2,0.98814848]
[1641632203603,2.48811627,3215.3,3215.2,0.98814848]
[1641632203804,17.42739127,3215.3,3215.2,0.98814848]
[1641632204003,17.42739127,3215.3,3215.2,0.79207218]
[1641632204205,17.42739127,3215.3,3214.8,0.79207218]
[1641632204406,2.00479,3214.9,3214.8,0.79207218]
[1641632204805,2.269578,3214.9,3214.8,0.79207218]
[1641632205907,2.269578,3214.9,3214.6,0.024679]
[1641632205908,2.00479,3214.9,3214.6,0.024679]
[1641632207108,2.00479,3214.9,3214.7,0.98823143]
[1641632207307,2.00479,3214.9,3214.7,3.40188204]
[1641632207708,2.00479,3214.9,3214.7,1.90193143]
[1641632208109,2.00479,3214.9,3214.7,3.40188204]
[1641632208309,2.00479,3214.9,3214.7,2.60980986]
[1641632208510,2.00479,3214.9,3214.8,0.19615925]
[1641632210214,2.00479,3214.9,3214.7,0.9137]
[1641632210415,2.00479,3214.9,3214.6,0.024679]
[1641632211315,2.00479,3214.9,3214.7,0.19599391]
[1641632212616,2.00479,3214.9,3214.8,0.7916275]
[1641632214418,2.00479,3214.9,3214.7,0.19599391]
[1641632215523,2.00479,3214.9,3214.8,0.79158525]
[1641632216321,2.00479,3214.9,3214.7,0.19599391]
[1641632217325,2.00479,3214.9,3214.8,0.79156125]
[1641632218527,2.00479,3214.9,3214.7,0.79156125]
[1641632219628,2.00479,3214.9,3214.6,0.98755516]
[1641632221333,0.264788,3214.8,3214.6,0.98755516]
[1641632223336,0.264788,3214.8,3214.6,0.79156125]
[1641632224342,1.03133583,3214.6,3213.9,4.00255992]
[1641632224536,0.905575,3214.5,3213.9,2.41929869]
[1641632224734,2.00479,3214.0,3213.9,1.31938435]
[1641632225134,2.269578,3214.0,3213.9,1.31938435]
[1641632226736,2.269578,3214.0,3213.4,0.1961052]
[1641632228139,2.269578,3214.0,3213.5,0.024679]
[1641632228337,2.269578,3214.0,3213.5,0.83140167]
[1641632228739,2.269578,3214.0,3213.2,0.1961052]
[1641632229339,2.269578,3214.0,3213.2,1.04673635]
[1641632230141,2.269578,3214.0,3213.3,0.024679]
[1641632230542,2.269578,3214.0,3213.3,0.21552286]
[1641632231541,2.269578,3214.0,3213.4,0.19084386]
[1641632231742,2.00479,3214.0,3213.4,0.19084386]
[1641632231942,9e-05,3214.0,3213.4,1.69079447]
[1641632232145,1.04139949,3214.9,3213.8,1.49995061]
[1641632232342,1.04139949,3214.9,3213.8,2.27225061]
[1641632232543,1.04139949,3214.9,3214.0,1.49995061]
[1641632232749,2.00479,3214.8,3214.0,2.00479]
[1641632232946,0.905575,3214.7,3214.0,2.00479]
[1641632233147,0.905575,3214.7,3214.1,1.0746618]
[1641632233550,0.905575,3214.7,3214.0,2.00479]
[1641632233950,1.55536234,3214.6,3214.0,2.00479]
[1641632234349,0.264788,3214.5,3214.0,2.00479]
[1641632234750,28.0808562,3214.5,3214.0,2.00479]
[1641632237656,27.8160682,3214.5,3214.0,2.029469]
[1641632239558,27.8160682,3214.5,3214.0,2.746369]
[1641632239960,27.8160682,3214.5,3214.0,2.72169]
[1641632240360,28.0808562,3214.5,3214.0,2.72169]
[1641632242163,27.8160682,3214.5,3214.0,2.72169]
[1641632243663,28.7216432,3214.5,3214.0,2.72169]
[1641632244463,28.7216432,3214.5,3214.0,2.00479]
[1641632244666,0.93330794,3214.4,3214.0,2.00479]
[1641632245165,0.264788,3214.3,3214.0,2.00479]
[1641632248769,28.4568552,3214.5,3214.0,2.00479]
[1641632249169,28.7216432,3214.5,3214.0,2.00479]
[1641632250070,28.7216432,3214.5,3214.0,2.81239]
[1641632250470,27.8160682,3214.5,3214.0,2.81239]
[1641632251971,1.55534783,3214.7,3214.0,2.81239]
[1641632252172,0.77746729,3214.9,3214.0,2.81239]
[1641632252473,0.77746729,3214.9,3214.4,1.49995061]
[1641632252870,0.77746729,3214.9,3214.8,4.00958]
[1641632253072,0.77746729,3214.9,3214.8,5.75717055]
[1641632253374,0.77746729,3215.5,3214.8,5.75717055]
[1641632254176,0.905575,3215.4,3214.8,5.75717055]
[1641632254973,0.905575,3215.4,3215.2,2.00479]
[1641632255574,2.3323653,3215.6,3215.2,3.2550496]
[1641632257675,1.55489801,3215.6,3215.2,3.2550496]
[1641632259976,1.41825429,3215.7,3215.2,3.2550496]
[1641632260177,0.77746729,3215.6,3215.2,3.2550496]
[1641632260379,1.04225529,3215.6,3215.2,3.2550496]
[1641632261280,0.77746729,3215.4,3215.2,2.00479]
[1641632261681,0.264788,3215.3,3215.2,2.00479]
[1641632262479,2.61513313,3215.7,3215.2,2.00479]
[1641632262480,0.77746729,3215.5,3215.2,2.00479]
[1641632262779,0.77746729,3215.5,3215.2,2.94599]
[1641632263680,0.640787,3215.6,3215.2,2.94599]
[1641632263879,0.905575,3215.6,3215.2,2.94599]
[1641632264480,1.71041393,3215.7,3215.2,2.94599]
[1641632264981,0.77746729,3215.5,3215.2,2.94599]
[1641632265881,0.640787,3215.5,3215.2,2.94599]
[1641632266081,0.77746729,3215.6,3215.2,2.94599]
[1641632266983,1.97520193,3215.7,3215.2,2.94599]
[1641632267782,0.640787,3215.6,3215.2,2.94599]
[1641632268983,1.41825429,3215.6,3215.2,2.94599]
[1641632270184,0.640787,3215.6,3215.2,2.94599]
[1641632270784,0.264788,3215.5,3215.2,2.94599]
[1641632276291,0.264788,3215.5,3215.2,2.00479]
[1641632281794,1.04225529,3215.5,3215.2,2.00479]
[1641632282994,1.97525923,3215.5,3215.2,2.00479]
[1641632287299,1.04225529,3215.5,3215.2,2.00479]
[1641632289203,1.04225529,3215.5,3215.2,2.76429]
[1641632290905,0.264788,3215.5,3215.2,2.76429]
[1641632291906,0.264788,3215.5,3215.2,2.788969]
[1641632293008,1.04225529,3215.5,3215.2,2.788969]
[1641632294008,0.264788,3215.5,3215.2,2.788969]
[1641632294208,0.264788,3215.5,3215.2,3.92233041]
[1641632294410,0.77746729,3215.6,3215.2,3.92233041]
[1641632294610,1.04225529,3215.6,3215.2,3.92233041]
[1641632296913,0.77746729,3215.5,3215.2,3.92233041]
[1641632297112,0.264788,3215.4,3215.2,3.89765141]
[1641632298918,1.04225529,3215.4,3215.2,2.76429]
[1641632299120,18.36982099,3215.3,3214.7,0.79016671]
[1641632299319,1.5,3214.8,3214.7,0.79016671]
[1641632299519,0.93319208,3214.8,3214.7,0.79016671]
[1641632299720,1.57397908,3214.8,3214.7,0.79016671]
[1641632299921,2.61623437,3214.8,3214.1,0.79016671]
[1641632301122,2.00479,3214.6,3214.1,0.79016671]
[1641632301521,0.77746729,3214.4,3213.8,4.15640968]
[1641632302523,0.264788,3214.3,3213.8,4.15640968]
[1641632302925,0.264788,3214.3,3213.8,4.18108868]
[1641632305032,2.78225729,3214.6,3213.8,4.18108868]
[1641632305232,2.78225729,3214.6,3213.9,0.98034107]
[1641632306431,2.00479,3214.6,3214.0,0.79016671]
[1641632306633,0.264788,3214.5,3214.0,0.79016671]
[1641632309233,1.015488,3214.5,3214.0,0.79016671]
[1641632310433,0.93333857,3214.3,3214.0,0.79016671]
[1641632310633,0.264788,3214.2,3214.0,0.79016671]